bitfinex/quotes_SOLUSD_20240909
["timestamp","ask_amount","ask_price","bid_price","bid_amount"]
[1725897397278,45.0,128.92,128.89,7.7585]
[1725897397478,45.0,128.92,128.89,9.31006297]
[1725897397664,45.0,128.92,128.9,7.7579]
[1725897397866,45.0,128.93,128.9,7.7579]
[1725897398053,20.0,128.92,128.9,7.7579]
[1725897398255,45.0,128.91,128.9,7.7579]
[1725897399074,45.0,128.91,128.89,7.7583]
[1725897400165,45.0,128.92,128.89,7.7583]
[1725897400358,45.0,128.92,128.9,7.7578]
[1725897400676,45.0,128.93,128.9,7.7578]
[1725897400876,20.0,128.92,128.9,7.7578]
[1725897401060,45.0,128.91,128.9,7.7578]
[1725897402001,45.0,128.91,128.89,7.7583]
[1725897402464,20.0,128.92,128.9,7.7578]
[1725897402663,20.0,128.93,128.9,7.7578]
[1725897402869,45.0,128.92,128.9,7.7578]
[1725897403284,45.0,128.92,128.91,7.7573]
[1725897403964,45.0,128.92,128.9,27.1525]
[1725897405887,45.0,128.92,128.91,7.7573]
[1725897407500,45.0,128.92,128.9,27.1524]
[1725897407699,45.0,128.92,128.9,19.3947]
[1725897407866,6.2215,128.96,128.92,7.7567]
[1725897408068,65.0,128.95,128.92,7.7567]
[1725897408289,20.0,128.95,128.92,27.1484]
[1725897408664,20.0,128.95,128.93,7.7561]
[1725897409466,20.0,128.95,128.92,27.1481]
[1725897409675,45.0,128.94,128.92,27.1481]
[1725897412297,15.1818,128.97,128.94,19.3877]
[1725897412599,20.0,128.96,128.94,19.3877]
[1725897413392,20.0,128.96,128.94,27.1431]
[1725897414079,20.0,128.97,128.94,27.1431]
[1725897414395,45.0,128.96,128.94,27.1431]
[1725897417492,20.0,128.97,128.95,7.7549]
[1725897417792,20.8363624,128.99,128.95,7.7549]
[1725897417993,20.8363624,128.99,128.94,19.3877]
[1725897418198,28.5893624,128.99,128.95,7.7545]
[1725897418803,45.0,128.98,128.95,7.7545]
[1725897418978,20.0,128.97,128.95,7.7545]
[1725897419177,45.0,128.96,128.94,27.1431]
[1725897419677,45.0,128.97,128.94,27.1431]
[1725897422411,52.7538,128.97,128.94,19.3877]
[1725897423083,27.7548,128.96,128.92,7.7565]
[1725897423283,52.755,128.95,128.91,7.7569]
[1725897423607,52.755,128.95,128.92,7.7567]
[1725897424107,45.0,128.95,128.92,7.7567]
[1725897426187,45.0,128.95,128.93,7.7561]
[1725897426391,45.0,128.95,128.92,7.7565]
[1725897427398,52.755,128.95,128.91,27.1493]
[1725897428992,45.0,128.95,128.92,7.7566]
[1725897431594,45.0,128.95,128.93,7.7561]
[1725897432300,45.0,128.95,128.93,27.1464]
[1725897434201,45.0,128.95,128.94,7.7555]
[1725897434419,7.7533,128.98,128.95,7.7548]
[1725897434706,45.0,128.97,128.93,19.3903]
[1725897434903,45.0,128.97,128.94,7.7553]
[1725897434904,52.7538,128.97,128.94,7.7553]
[1725897435411,52.7538,128.97,128.93,19.3903]
[1725897435412,7.7544,128.96,128.93,27.1462]
[1725897435611,45.0,128.95,128.93,27.1462]
[1725897435794,45.0,128.95,128.93,19.3903]
[1725897436214,45.0,128.95,128.93,27.1463]
[1725897436937,45.0,128.95,128.92,7.7564]
[1725897437090,52.755,128.95,128.91,7.7571]
[1725897437293,7.7556,128.94,128.9,19.3935]
[1725897437486,45.0,128.93,128.9,27.1512]
[1725897438292,52.7563,128.93,128.89,7.7585]
[1725897438716,45.0,128.93,128.9,7.7579]
[1725897439591,45.0,128.93,128.91,7.7573]
[1725897439790,22.9174,128.95,128.91,7.7573]
[1725897440007,6.2338,128.97,128.87,13.90263022]
[1725897440315,20.0,128.96,128.93,7.7559]
[1725897441289,20.0,128.96,128.93,27.1457]
[1725897441501,45.0,128.95,128.93,27.1457]
[1725897443719,45.0,128.95,128.94,7.7555]
[1725897445413,45.0,128.95,128.93,19.3898]
[1725897445414,45.0,128.95,128.93,27.1457]
[1725897447120,20.0,128.94,128.86,15.5722]
[1725897447301,45.0,128.93,128.86,15.5722]
[1725897447500,45.0,128.93,128.91,7.7572]
[1725897448112,45.0,128.93,128.9,27.1524]
[1725897448418,52.7561,128.93,128.89,7.7583]
[1725897448592,52.7561,128.93,128.88,7.7589]
[1725897448793,20.0,128.92,128.89,7.7584]
[1725897449117,45.0,128.91,128.89,7.7584]
[1725897450619,45.0,128.91,128.87,19.3981]
[1725897450921,45.0,128.91,128.88,7.759]
[1725897454014,52.7574,128.91,128.87,19.3981]
[1725897454212,20.0,128.9,128.87,19.3981]
[1725897454517,45.0,128.89,128.82,23.0277]
[1725897455408,45.0,128.89,128.86,7.7603]
[1725897455608,45.0,128.89,128.82,23.0277]
[1725897455609,45.0,128.89,128.87,7.7596]
[1725897455806,45.0,128.89,128.88,7.7591]
[1725897457818,45.0,128.89,128.86,19.4004]
[1725897458122,45.0,128.89,128.86,27.1606]
[1725897459023,45.0,128.89,128.86,19.4004]
[1725897459218,60.61,128.89,128.84,7.7614]
[1725897459421,20.0,128.88,128.84,7.7614]
[1725897459723,45.0,128.87,128.85,7.7609]
[1725897460508,20.0,128.88,128.86,7.7603]
[1725897460700,16.2503,128.92,128.82,13.90263022]
[1725897460920,24.0072,128.92,128.87,7.7593]
[1725897461223,24.0072,128.92,128.83,1.55171185]
[1725897461224,20.0,128.91,128.88,7.7591]
[1725897461920,16.2503,128.92,128.88,7.7591]
[1725897462110,16.2503,128.92,128.89,7.7585]
[1725897463228,20.0,128.91,128.89,7.7585]
[1725897463614,7.7557,128.94,128.9,7.7579]
[1725897463824,65.0,128.93,128.9,7.7579]
[1725897464627,65.0,128.93,128.89,19.3963]
[1725897464628,65.0,128.93,128.89,27.1546]
[1725897465604,65.0,128.93,128.91,7.7572]
[1725897465921,16.0656,128.95,128.92,7.7565]
[1725897466143,16.0656,128.95,128.91,7.7572]
[1725897466718,16.0656,128.95,128.91,27.15]
[1725897467316,20.0,128.94,128.91,27.15]
[1725897469727,6.4012,128.96,128.93,7.7561]
[1725897470024,45.0,128.95,128.93,7.7561]
[1725897470209,20.0,128.95,128.93,7.7561]
[1725897470417,45.0,128.94,128.93,7.7561]
[1725897471215,22.9899,128.98,128.93,7.7561]
[1725897471528,20.0,128.97,128.94,7.7555]
[1725897471732,15.2366,128.98,128.94,7.7555]
[1725897472032,15.2366,128.98,128.94,9.3064417]
[1725897472212,15.2366,128.98,128.94,7.7555]
[1725897473017,65.0,128.97,128.94,7.7555]
[1725897474918,65.0,128.97,128.93,27.1459]
[1725897475121,72.7538,128.97,128.93,19.39]
[1725897475317,65.0,128.97,128.93,27.146]
[1725897475923,7.7544,128.96,128.89,15.0466]
[1725897476227,45.0,128.95,128.91,7.7569]
[1725897476838,7.755,128.95,128.91,7.7569]
[1725897477030,45.0,128.94,128.91,7.7569]
[1725897477411,45.0,128.94,128.92,7.7567]
[1725897477611,45.0,128.95,128.92,7.7567]
[1725897478234,45.0,128.95,128.93,7.756]
[1725897478537,45.0,128.96,128.93,7.756]
[1725897478711,20.0,128.95,128.93,7.756]
[1725897478916,45.0,128.94,128.92,7.7565]
[1725897479638,45.0,128.94,128.92,27.148]
[1725897480339,45.0,128.94,128.92,19.3915]
[1725897480857,45.0,128.94,128.9,7.7577]
[1725897481718,45.0,128.94,128.89,34.4417]
[1725897481934,45.0,128.94,128.9,7.7574]
[1725897482515,45.0,128.94,128.89,27.1534]
[1725897482716,20.0,128.93,128.88,7.759]
[1725897482941,45.0,128.92,128.88,7.759]
[1725897484321,52.7568,128.92,128.89,0.12549]
[1725897486026,45.0,128.92,128.89,0.12549]
[1725897486744,45.0,128.92,128.88,0.12549]
[1725897486934,7.7583,128.9,128.85,7.7606]
[1725897487136,65.0,128.89,128.81,23.1721]
[1725897487448,7.7598,128.87,128.81,23.1721]
[1725897487647,45.0,128.86,128.81,23.1721]
[1725897488553,45.0,128.86,128.84,7.88689]
[1725897488746,45.0,128.87,128.84,7.88689]
[1725897490657,45.0,128.87,128.86,0.12549]
[1725897490859,1.35264707,128.88,128.86,7.88579]
[1725897491157,1.35223459,128.91,128.88,0.12549]
[1725897491535,1.35223459,128.91,128.88,7.88459]
[1725897491746,1.35223459,128.91,128.89,7.7583]
[1725897491926,1.35223459,128.91,128.9,0.12549]
[1725897492547,1.35223459,128.91,128.9,7.88339]
[1725897493459,1.35223459,128.91,128.9,0.12549]
[1725897493766,1.35223459,128.91,128.89,0.12549]
[1725897493936,46.35223459,128.91,128.89,0.12549]
[1725897495146,46.35223459,128.91,128.89,7.88389]
[1725897495541,46.35223459,128.91,128.89,0.12549]
[1725897495873,46.35223459,128.91,128.88,0.12549]
[1725897496065,46.35223459,128.91,128.88,7.88459]
[1725897496367,46.35223459,128.91,128.88,0.12549]
[1725897496541,20.0,128.9,128.88,0.12549]
[1725897496742,45.0,128.89,128.88,0.12549]
[1725897501858,45.0,128.89,128.87,0.12549]
[1725897501859,65.0,128.89,128.87,0.12549]
[1725897502166,45.0,128.89,128.87,0.12549]
[1725897504661,52.7587,128.89,128.86,0.12549]
[1725897504862,45.0,128.89,128.86,7.88579]
[1725897505978,45.0,128.89,128.88,0.12549]
[1725897506157,65.0,128.89,128.88,0.12549]
[1725897506360,65.0,128.89,128.88,27.28239]
[1725897506582,45.0,128.89,128.88,27.28239]
[1725897507172,45.0,128.89,128.88,19.52329]
[1725897507571,45.0,128.89,128.88,27.28239]
[1725897507871,9.10973459,128.91,128.88,27.28239]
[1725897508187,65.0,128.9,128.88,27.28239]
[1725897508385,9.10973459,128.91,128.9,27.27819]
[1725897508386,1.35223459,128.91,128.9,27.27819]
[1725897508568,7.7552,128.95,128.91,7.88279]
[1725897508774,9.10747614,128.94,128.91,0.12549]
[1725897509977,45.0,128.93,128.91,0.12549]
[1725897510472,52.7565,128.93,128.9,0.12549]
[1725897510784,45.0,128.93,128.9,0.12549]
[1725897510982,52.7564,128.93,128.9,0.12549]
[1725897511162,20.0,128.92,128.9,0.12549]
[1725897511375,45.0,128.91,128.9,0.12549]
[1725897511563,65.0,128.91,128.9,0.12549]
[1725897512192,72.7573,128.91,128.9,0.12549]
[1725897519005,65.0,128.91,128.89,0.12549]
[1725897519179,20.0,128.9,128.89,0.12549]
[1725897519495,65.0,128.9,128.83,25.4911]
[1725897519708,52.7591,128.89,128.85,7.7609]
[1725897519869,20.0,128.88,128.85,7.7607]
[1725897520196,45.0,128.87,128.85,7.7607]
[1725897520893,45.0,128.87,128.86,0.12549]
[1725897521274,45.0,128.87,128.85,0.12549]
[1725897521493,52.7597,128.87,128.84,0.12549]
[1725897521682,7.7603,128.86,128.83,27.1662]
[1725897521883,45.0,128.85,128.83,27.1662]
[1725897522773,45.0,128.85,128.84,7.88699]
[1725897523200,20.0,128.88,128.84,7.88699]
[1725897523404,45.0,128.87,128.84,7.88699]
[1725897525010,52.7598,128.87,128.84,0.12549]
[1725897525297,7.7603,128.86,128.84,0.12549]
[1725897525605,72.7609,128.85,128.81,7.7632]
[1725897525796,27.7609,128.85,128.81,7.7632]
[1725897526002,45.0,128.84,128.81,7.7632]
[1725897527307,52.7616,128.84,128.81,7.7632]
[1725897527906,52.7616,128.84,128.82,0.12549]
[1725897528080,20.0,128.83,128.81,0.12549]
[1725897528282,45.0,128.82,128.81,0.12549]
[1725897530826,45.0,128.82,128.81,7.88879]
[1725897531003,45.0,128.82,128.81,0.12549]
[1725897531512,45.0,128.82,128.8,0.12549]
[1725897531705,7.7633,128.81,128.77,19.413]
[1725897531903,65.0,128.8,128.77,27.1782]
[1725897533019,72.764,128.8,128.77,19.413]
[1725897533198,72.764,128.8,128.76,7.7661]
[1725897533812,7.7646,128.79,128.75,19.4174]
[1725897534000,45.0,128.78,128.76,7.7662]
[1725897534318,45.0,128.78,128.75,19.4174]
[1725897534319,72.7641,128.8,128.77,7.7657]
[1725897534515,65.0,128.8,128.77,7.7657]
[1725897534719,65.0,128.8,128.77,27.1797]
[1725897534924,65.0,128.8,128.79,0.12549]
[1725897535216,65.0,128.8,128.78,0.12549]
[1725897536094,65.0,128.8,128.78,7.89059]
[1725897536294,45.0,128.8,128.79,7.7645]
[1725897536503,45.0,128.8,128.79,7.88999]
[1725897536714,65.0,128.8,128.79,0.12549]
[1725897537819,65.0,128.8,128.78,0.12549]
[1725897541832,72.7639,128.8,128.78,0.12549]
[1725897542820,65.0,128.8,128.78,0.12549]
[1725897543521,72.764,128.8,128.78,0.12549]
[1725897544203,20.0,128.79,128.78,0.12549]
[1725897544419,65.0,128.79,128.78,0.12549]
[1725897545512,45.0,128.79,128.78,0.12549]
[1725897546316,45.0,128.79,128.78,7.89059]
[1725897547847,45.0,128.79,128.78,0.12549]
[1725897549337,45.0,128.79,128.77,19.4142]
[1725897549545,45.0,128.78,128.77,19.4142]
[1725897549842,45.0,128.78,128.76,7.7662]
[1725897550044,52.7656,128.78,128.74,7.7672]
[1725897550250,20.0,128.77,128.74,27.186]
[1725897550552,20.0,128.77,128.75,7.7669]
[1725897550841,27.7653,128.78,128.74,27.1863]
[1725897551015,45.0,128.77,128.74,27.1863]
[1725897552247,45.0,128.77,128.71,19.4221]
[1725897552551,52.7658,128.77,128.71,19.4221]
[1725897552738,52.7658,128.77,128.73,7.7676]
[1725897553635,45.0,128.77,128.74,7.7671]
[1725897553850,45.0,128.77,128.75,0.12549]
[1725897554421,45.0,128.77,128.75,7.89229]
[1725897555748,45.0,128.77,128.74,7.89279]
[1725897558918,52.7659,128.77,128.74,0.12549]
[1725897560552,43.35761012,128.77,128.76,0.12549]
[1725897560861,63.35761012,128.77,128.76,0.12549]
[1725897562956,9.1177051,128.8,128.76,7.89179]
[1725897563256,20.0,128.79,128.76,7.89179]
[1725897563652,27.7649,128.79,128.76,0.12549]
[1725897564356,45.0,128.78,128.76,0.12549]
[1725897564557,20.0,128.77,128.76,0.12549]
[1725897564759,65.0,128.77,128.76,0.12549]
[1725897565165,20.0,128.77,128.76,7.89179]
[1725897565845,20.0,128.77,128.76,0.12549]
[1725897566963,20.0,128.77,128.75,27.1836]
[1725897567253,45.0,128.76,128.74,7.7673]
[1725897567560,45.0,128.77,128.74,7.7673]
[1725897568941,45.0,128.77,128.75,0.12549]
[1725897574077,45.0,128.77,128.75,7.89229]
[1725897574746,45.0,128.77,128.75,0.12549]
[1725897574942,52.7662,128.77,128.74,0.12549]
[1725897575962,7.7664,128.76,128.74,0.12549]
[1725897576159,65.0,128.75,128.71,19.4223]
[1725897576357,45.0,128.74,128.68,19.427]
[1725897576768,45.0,128.74,128.71,7.7693]
[1725897577068,52.7677,128.74,128.7,27.1945]
[1725897577248,27.7683,128.73,128.7,19.4247]
[1725897577564,45.0,128.72,128.7,19.4247]
[1725897577957,45.0,128.72,128.7,27.1944]
[1725897578158,45.0,128.73,128.7,27.1944]
[1725897578841,45.0,128.74,128.7,27.1944]
[1725897579048,20.0,128.73,128.7,27.1944]
[1725897579267,45.0,128.72,128.71,0.12549]
[1725897580473,20.0,128.73,128.71,0.12549]
[1725897580778,20.0,128.74,128.71,0.12549]
[1725897581247,20.0,128.74,128.71,7.89479]
[1725897581966,45.0,128.73,128.71,7.89479]
[1725897582166,45.0,128.73,128.72,7.7688]
[1725897582371,56.46453107,128.77,128.73,7.768]
[1725897582545,20.0,128.76,128.74,0.12549]
[1725897582869,45.0,128.75,128.74,0.12549]
[1725897583071,45.0,128.75,128.73,0.12549]
[1725897586173,45.0,128.76,128.73,0.12549]
[1725897586777,45.0,128.77,128.73,0.12549]
[1725897586976,20.0,128.76,128.75,0.12549]
[1725897587155,65.0,128.76,128.75,0.12549]
[1725897587977,20.0,128.76,128.75,0.12549]
[1725897589061,20.0,128.76,128.75,7.89239]
[1725897589459,45.0,128.76,128.75,7.89239]
[1725897589974,46.35357445,128.76,128.75,7.89239]
[1725897590175,1.35357445,128.76,128.75,7.89239]
[1725897590478,20.0,128.78,128.75,7.89239]
[1725897590674,21.35352129,128.78,128.75,7.89239]
[1725897591386,45.0,128.77,128.75,7.89239]
[1725897595388,45.0,128.77,128.75,0.12549]
[1725897595987,45.0,128.77,128.74,27.1861]
[1725897596164,45.0,128.77,128.74,19.4188]
[1725897596992,45.0,128.77,128.75,0.12549]
[1725897598894,45.0,128.77,128.76,27.30769]
[1725897599082,65.0,128.77,128.76,27.30769]
[1725897599282,20.0,128.77,128.76,27.30769]
[1725897599667,1.35352129,128.78,128.77,7.89119]
[1725897599983,24.5467246,128.79,128.78,0.12549]
[1725897600794,69.5467246,128.79,128.78,0.12549]
[1725897601034,89.5467246,128.79,128.78,0.12549]
[1725897603095,65.0,128.79,128.78,0.12549]
[1725897603797,65.0,128.79,128.78,7.89059]
[1725897603998,1.35332572,128.8,128.79,7.88999]
[1725897604498,7.761,128.85,128.82,0.12549]
[1725897604702,1.3529536,128.83,128.82,0.12549]
[1725897604914,1.3529536,128.83,128.77,19.4131]
[1725897605119,8.66045438,128.82,128.78,0.12549]
[1725897605421,1.3529536,128.83,128.78,0.12549]
[1725897605585,7.7629,128.82,128.78,0.12549]
[1725897605792,45.0,128.81,128.78,7.89059]
[1725897605991,45.0,128.81,128.8,0.12549]
[1725897606191,65.0,128.81,128.8,0.12549]
[1725897606403,45.0,128.81,128.8,7.88939]
[1725897607487,45.0,128.81,128.76,19.415]
[1725897607693,7.765,128.79,128.74,7.7671]
[1725897607896,61.5231,128.81,128.72,6.6397]
[1725897607897,52.7652,128.78,128.73,27.187]
[1725897608540,7.7667,128.76,128.71,7.7689]
[1725897608701,72.7672,128.75,128.7,27.1933]
[1725897608905,52.7672,128.75,128.71,7.7693]
[1725897609219,20.0,128.74,128.72,19.4213]
[1725897609522,45.0,128.75,128.72,19.4213]
[1725897610022,34.37682791,128.79,128.74,7.7672]
[1725897610317,65.0,128.78,128.75,7.89209]
[1725897610913,65.0,128.78,128.75,0.12549]
[1725897611121,7.7662,128.77,128.75,0.12549]
[1725897611293,65.0,128.76,128.75,0.12549]
[1725897611693,65.0,128.76,128.74,0.12549]
[1725897611917,65.0,128.76,128.73,27.1882]
[1725897613418,65.0,128.76,128.74,0.12549]
[1725897616229,26.61212791,128.79,128.78,0.12549]
[1725897616630,26.61212791,128.79,128.78,7.89059]
[1725897616929,9.1152536,128.83,128.78,7.89059]
[1725897617915,9.1152536,128.83,128.78,0.12549]
[1725897618231,1.3529536,128.83,128.78,0.12549]
[1725897618424,46.3529536,128.83,128.78,0.12549]
[1725897618622,46.3529536,128.83,128.78,7.89039]
[1725897618623,7.7631,128.82,128.78,7.89039]
[1725897618824,7.7657,128.78,128.74,27.1855]
[1725897619023,95.0,128.81,128.74,27.1855]
[1725897619024,7.7647,128.79,128.74,19.4184]
[1725897619209,45.0,128.78,128.74,27.1855]
[1725897619410,52.7653,128.78,128.74,27.1855]
[1725897619924,52.7653,128.78,128.72,15.3404]
[1725897619925,7.7661,128.77,128.73,7.768]
[1725897620224,45.0,128.76,128.73,7.768]
[1725897620534,45.0,128.76,128.73,27.1883]
[1725897621329,45.0,128.76,128.74,7.7675]
[1725897621520,45.0,128.77,128.75,7.89229]
[1725897621719,45.0,128.78,128.74,0.12549]
[1725897621919,20.0,128.77,128.74,0.12549]
[1725897622121,45.0,128.76,128.74,0.12549]
[1725897622331,52.7668,128.76,128.74,0.12549]
[1725897622527,52.7668,128.76,128.73,0.12549]
[1725897622734,7.7672,128.75,128.71,7.7692]
[1725897622944,45.0,128.74,128.71,7.7692]
[1725897623509,45.0,128.74,128.7,19.4239]
[1725897623510,45.0,128.74,128.72,7.7687]
[1725897623706,45.0,128.75,128.73,7.768]
[1725897623925,45.0,128.76,128.73,0.12549]
[1725897624124,20.0,128.75,128.73,0.12549]
[1725897624324,45.0,128.74,128.73,0.12549]
[1725897625528,45.0,128.74,128.72,0.12549]
[1725897625736,45.0,128.74,128.71,0.12549]
[1725897626443,52.7677,128.74,128.7,7.7698]
[1725897627431,52.7677,128.74,128.69,43.0947]
[1725897628027,52.7677,128.74,128.69,27.1961]
[1725897628226,45.0,128.74,128.7,0.12549]
[1725897628536,20.0,128.73,128.69,0.12549]
[1725897628752,45.0,128.72,128.69,0.12549]
[1725897629242,20.0,128.71,128.67,7.7717]
[1725897629537,45.0,128.7,128.67,7.7717]
[1725897630128,45.0,128.7,128.66,19.4297]
[1725897630321,27.7706,128.69,128.66,19.4297]
[1725897630644,45.0,128.68,128.66,19.4297]
[1725897631221,52.7715,128.68,128.64,7.7735]
[1725897631435,20.0,128.67,128.64,7.7735]
[1725897631725,45.0,128.66,128.63,27.2084]
[1725897632120,45.0,128.66,128.64,7.7735]
[1725897633228,45.0,128.66,128.65,0.12549]
[1725897633618,65.0,128.66,128.6,19.4392]
[1725897633844,20.0,128.65,128.6,19.4392]
[1725897634153,45.0,128.64,128.6,19.4392]
[1725897635363,45.0,128.64,128.63,0.12549]
[1725897638165,16.0763,128.69,128.63,7.89969]
[1725897638365,20.0,128.68,128.66,0.12549]
[1725897638941,16.0763,128.69,128.66,7.89779]
[1725897639152,7.7695,128.71,128.66,7.89779]
[1725897639465,7.7695,128.71,128.68,0.12549]
[1725897640648,45.0,128.7,128.68,0.12549]
[1725897641067,20.0,128.69,128.68,0.12549]
[1725897641364,65.0,128.69,128.68,0.12549]
[1725897641765,16.5933,128.72,128.68,7.89669]
[1725897642146,16.5933,128.72,128.7,0.12549]
[1725897642668,24.3621,128.72,128.7,0.12549]
[1725897642871,7.7698,128.71,128.67,19.4289]
[1725897643075,20.0,128.7,128.68,0.12549]
[1725897643871,45.0,128.69,128.68,0.12549]
[1725897644772,45.0,128.69,128.68,7.89669]
[1725897644988,20.0,128.7,128.69,7.7706]
[1725897645283,20.0,128.71,128.68,7.89649]
[1725897646112,27.7694,128.71,128.68,0.12549]
[1725897646553,45.0,128.7,128.68,0.12549]
[1725897647881,45.0,128.7,128.68,7.89659]
[1725897648959,45.0,128.7,128.69,7.89609]
[1725897649162,65.0,128.7,128.69,7.89609]
[1725897651618,65.0,128.7,128.68,7.89649]
[1725897653631,65.0,128.7,128.69,7.7706]
[1725897654124,65.0,128.7,128.69,7.89609]
[1725897654323,65.0,128.7,128.69,0.12549]
[1725897655324,45.0,128.7,128.69,7.7706]
[1725897655503,45.0,128.7,128.69,27.32259]
[1725897655706,23.4594,128.76,128.72,7.7687]
[1725897656026,1.35398879,128.75,128.73,0.12549]
[1725897657029,46.35398879,128.75,128.73,0.12549]
[1725897657315,1.35398879,128.75,128.73,0.12549]
[1725897657898,21.35398879,128.75,128.73,0.12549]
[1725897658113,1.35398879,128.75,128.74,7.89299]
[1725897659034,43.0940379,128.78,128.75,7.89209]
[1725897659238,44.44761304,128.78,128.75,7.89209]
[1725897659707,1.35357514,128.78,128.75,0.12549]
[1725897659913,7.7634,128.81,128.75,0.12549]
[1725897660204,1.35351438,128.8,128.75,0.12549]
[1725897660424,1.35351438,128.8,128.77,0.12549]
[1725897661311,21.35351438,128.8,128.77,0.12549]
[1725897661627,21.35351438,128.8,128.78,0.12549]
[1725897662328,20.0,128.79,128.78,0.12549]
[1725897662533,1.35351438,128.8,128.78,7.89059]
[1725897663039,23.9218,128.82,128.78,7.89059]
[1725897663199,1.35335,128.81,128.78,0.12549]
[1725897663630,7.7644,128.8,128.78,0.12549]
[1725897664026,27.7646,128.79,128.75,7.7668]
[1725897664215,20.0,128.79,128.76,0.12549]
[1725897664429,45.0,128.78,128.76,0.12549]
[1725897665934,45.0,128.78,128.77,0.12549]
[1725897666133,20.0,128.79,128.77,7.89079]
[1725897666349,1.35335,128.81,128.79,0.12549]
[1725897666646,21.35335,128.81,128.79,7.88999]
[1725897667110,20.0,128.83,128.8,7.7639]
[1725897667313,20.0,128.83,128.81,7.88879]
[1725897667526,1.35300773,128.83,128.81,7.88879]
[1725897668614,1.35300773,128.83,128.81,0.12549]
[1725897668815,46.35300773,128.83,128.81,0.12549]
[1725897669142,20.0,128.82,128.81,0.12549]
[1725897669347,65.0,128.82,128.81,0.12549]
[1725897669925,1.35300773,128.83,128.81,0.12549]
[1725897670241,23.0785,128.85,128.81,7.88869]
[1725897670438,1.35297847,128.84,128.81,0.12549]
[1725897671245,9.11457847,128.84,128.81,0.12549]
[1725897671546,72.7622,128.83,128.81,0.12549]
[1725897672245,7.7633,128.81,128.77,7.7653]
[1725897672539,45.0,128.8,128.77,27.1787]
[1725897673246,45.0,128.8,128.78,7.7651]
[1725897673432,45.0,128.81,128.79,0.12549]
[1725897674413,52.7638,128.81,128.77,27.1791]
[1725897674851,45.0,128.81,128.78,7.7651]
[1725897675751,52.7635,128.81,128.78,0.12549]
[1725897676618,20.0,128.8,128.78,0.12549]
[1725897676842,45.0,128.79,128.78,0.12549]
[1725897678142,20.0,128.8,128.78,0.12549]
[1725897678349,7.7628,128.82,128.78,7.89009]
[1725897678646,20.0,128.81,128.8,0.12549]
[1725897680239,65.0,128.81,128.8,0.12549]
[1725897681367,65.0,128.81,128.8,7.88939]
[1725897682161,65.0,128.81,128.77,19.4144]
[1725897682368,45.0,128.8,128.77,19.4144]
[1725897682956,45.0,128.8,128.78,7.765]
[1725897683573,45.0,128.8,128.79,0.12549]
[1725897683747,65.0,128.8,128.79,0.12549]
[1725897688264,65.0,128.8,128.78,0.12549]
[1725897689567,20.0,128.79,128.78,0.12549]
[1725897689875,65.0,128.79,128.78,0.12549]
[1725897691046,65.0,128.79,128.78,7.89059]
[1725897691242,65.0,128.79,128.78,0.12549]